Cogmind - Beta 14 @@@ ROGUE MODE // 2024.12.06 @ 19:06:07 Player: droogie Result: Destroyed by G-47 Trooper with Particle Gun Performance ------------- Evolutions (2) 1000 Regions Visited (3) 600 Robots Destroyed (19) 95 Value Destroyed (709) 709 Prototype IDs (0) 0 Alien Tech Used (0) 0 Bonus (0) 0 TOTAL SCORE: 2404 Bonus ------- None Cogmind --------- Core Integrity 0/550 Matter 89/300 Energy 100/100 System Corruption 0% Temperature Cool (27) Movement Core (400) Ox7 Location -8/Materials Parts ------- > --- POWER (2) -------- (None) > --- PROPULSION (4) --- (None) > --- UTILITY (2) ------ Large Storage Unit > --- WEAPON (3) ------- Light Assault Rifle Light Assault Rifle > --- INVENTORY (15) --- Light Armor Plating EM Pulse Gun Small Laser Small Laser Peak State ------------ > --- POWER ------------ Deuterium Engine Deuterium Engine > --- PROPULSION ------- Aluminum Leg Aluminum Leg Aluminum Leg Titanium Leg > --- UTILITY ---------- Large Storage Unit Medium Matter Pod > --- WEAPON ----------- Light Assault Rifle Heavy Assault Rifle High-powered Shotgun > --- INVENTORY -------- Light Treads Light Treads Aluminum Leg Light Armor Plating EM Pulse Gun Small Laser Small Laser Beam Rifle Light Assault Rifle Light Assault Rifle Light Assault Rifle Light Assault Rifle High-powered Shotgun High-powered Shotgun [Rating: 21] Favorites ----------- Power Deuterium Engine Engine Deuterium Engine Power Core Nuclear Core Propulsion Aluminum Leg Treads Light Treads Leg Aluminum Leg Utility Medium Matter Pod Storage Medium Matter Pod Weapon Light Assault Rifle Energy Gun EM Pulse Gun Ballistic Gun Light Assault Rifle Build | -11 -10 -9 -8 ------- Run | Yrd Mat Mat Mat Slots Evolved 4 | . . 2 2 Power 1 | . . . 1 Propulsion 2 | . . 2 . Utility . | . . . . Weapon 1 | . . . 1 Parts Attached 41 | 7 7 8 19 Power 8 | 1 1 1 5 Engine 7 | 1 1 1 4 Core 1 | . . . 1 Reactor . | . . . . Propulsion 13 | 2 2 4 5 Treads 4 | . 2 . 2 Leg 9 | 2 . 4 3 Wheel . | . . . . Hover . | . . . . Flight . | . . . . Utility 3 | 1 1 1 . Device . | . . . . Storage 3 | 1 1 1 . Processor . | . . . . Hackware . | . . . . Protection . | . . . . Artifact . | . . . . Weapon 17 | 3 3 2 9 Energy Gun 2 | 1 . . 1 Energy Cannon . | . . . . Ballistic Gun 15 | 2 3 2 8 Ballistic Cannon . | . . . . Launcher . | . . . . Special Weapon . | . . . . Impact Weapon . | . . . . Slashing Weapon . | . . . . Piercing Weapon . | . . . . Special Melee Weapon . | . . . . Unidentified Prototypes . | . . . . Parts Lost 23 | . 4 . 19 Power 5 | . 2 . 3 Propulsion 9 | . 1 . 8 Utility 1 | . . . 1 Weapon 8 | . 1 . 7 Highest Loss Streak 17 | . 2 . 17 To Critical Strikes . | . . . . Average Slot Usage (%) 84 | . 87 74 89 Engine 9 | . 8 1 14 Treads 7 | . 14 14 . Leg 22 | . 14 14 31 Storage 20 | . 22 22 17 Energy Gun 1 | . 4 . . Ballistic Gun 22 | . 22 22 24 Peak Build Rating 21 | 6 7 12 21 Average Rating 11 | 4 6 7 17 On Entrance 6 | . 6 6 12 Naked Turns . | . . . . Heaviest Build 47 | 14 14 33 47 Greatest Support 47 | 20 40 40 47 Greatest Overweight (x) 2 | . . 1 2 Average Overweight (x) . | . . . . Largest Inventory Capacity 15 | 8 8 15 15 Average Capacity 12 | 6 8 14 15 Most Carried 15 | 4 8 13 15 Average Carried 10 | 2 5 9 13 Final Capacity 15 | 8 8 15 15 Final Carried 13 | 4 8 13 4 Class Distribution -------------------- 51% | Mutant 21% | Scavenger-Gunner 15% | Scavenger-Mutant 11% | Gunner Dominant Class ---------------- Mutant | -10/Materials Mutant | -9/Materials Scavenger-Gunner | -8/Materials Resources | -11 -10 -9 -8 ----------- Run | Yrd Mat Mat Mat Matter Collected 575 | 163 133 182 97 Remotely . | . . . . Salvage Created 766 | . 216 182 368 Parts 42 | . 12 14 16 Haulers Intercepted 1 | . . . 1 Recyclers Shooed . | . . . . Parts Field Recycled . | . . . . Retrieved Matter . | . . . . Parts Self-Destructed . | . . . . Prevented . | . . . . Kills | -11 -10 -9 -8 ------- Run | Yrd Mat Mat Mat Combat Hostiles Destroyed 18 | . 5 6 7 Guns 18 | . 5 6 7 Classes Destroyed 5 | . 1 2 2 Hauler 1 | . . . 1 Swarmer 3 | . . 3 . Grunt 10 | . 5 1 4 Sentry 3 | . . 2 1 Specialist 2 | . . . 2 Best Kill Streak 5 | . 2 2 5 Combat Bots Only 5 | . 2 2 5 Max Kills in Single Turn 1 | . 1 1 1 Gunslinging . | . . . . Exploded . | . . . . Melee . | . . . . Uniques/NPCs Destroyed . | . . . . Combat | -11 -10 -9 -8 -------- Run | Yrd Mat Mat Mat Hostile Shots Fired 203 | . 50 28 125 Missed 42 | . 9 5 28 Damage Taken 3059 | . 553 296 2210 Core 707 | . 85 60 562 Absorbed by Shields . | . . . . Core Remaining (%) 83 | 100 66 85 . Volleys Fired 90 | . 28 22 40 Largest 3 | . 2 2 3 Hottest 68 | . 60 40 68 Shots Fired 178 | . 50 44 84 Gun 178 | . 50 44 84 Cannon . | . . . . Launcher . | . . . . Special . | . . . . Kinetic 171 | . 43 44 84 Thermal . | . . . . Explosive . | . . . . Electromagnetic 7 | . 7 . . Robot Hit Streak 23 | . 8 16 23 Robot Miss Streak 5 | . 5 3 3 Penetration Max . | . . . . Secondary Targets 4 | . 2 . 2 Max Gunslinging Chain 1 | . 1 . 1 Shots Hit Robots 131 | . 34 31 66 Core Hits 54 | . 12 13 29 Critical Kills 1 | . . . 1 Critical Parts Destroyed 1 | . . 1 . Critical Strikes 2 | . . 1 1 Destroy 2 | . . 1 1 Melee Attacks . | . . . . Impact . | . . . . Slashing . | . . . . Piercing . | . . . . Sneak Attacks . | . . . . Combat Hostiles . | . . . . Follow-up Attacks . | . . . . Damage Inflicted 1342 | . 340 257 745 Guns 1342 | . 340 257 745 Cannons . | . . . . Explosions . | . . . . Melee . | . . . . Ramming . | . . . . Kinetic 1277 | . 275 257 745 Thermal . | . . . . Explosive . | . . . . Electromagnetic 65 | . 65 . . Impact . | . . . . Slashing . | . . . . Piercing . | . . . . Highest Corruption . | . . . . Average Corruption . | . . . . Corruption Purged . | . . . . Corruption Blocked . | . . . . Overload Shots . | . . . . Overflow Damage . | . . . . Projectiles . | . . . . Explosions . | . . . . Melee . | . . . . Knockbacks . | . . . . Impact . | . . . . Kinetic . | . . . . Secondary . | . . . . Self-Inflicted Damage . | . . . . Shots . | . . . . Rammed . | . . . . Targets Rammed . | . . . . Kicked . | . . . . Crushed . | . . . . Highest Temperature 215 | . 75 19 215 Average Temperature 64 | . 29 10 87 Received Heat Transfer 1032 | . 264 138 630 Siege Activations . | . . . . Robots Corrupted . | . . . . Combat Hostiles . | . . . . Parts Fried . | . . . . Impact Corruptions . | . . . . Robots Melted . | . . . . Combat Hostiles . | . . . . Parts Melted . | . . . . Heat Transferred . | . . . . Parts Sabotaged . | . . . . Parts Stolen . | . . . . Parts Stripped . | . . . . Power Chain Reactions . | . . . . Alert | -11 -10 -9 -8 ------- Run | Yrd Mat Mat Mat Peak Influence 302 | . 125 302 187 Initial 52 | . . 52 42 Average 99 | . 76 193 59 Maximum Alert Level 1 | . . 1 . Low Security (%) 82 | 100 100 37 100 Level 1 17 | . . 62 . Level 2 . | . . . . Level 3 . | . . . . Level 4 . | . . . . Level 5 . | . . . . High Security . | . . . . Max Security . | . . . . Squads Dispatched 6 | . 2 1 3 Investigation . | . . . . Extermination . | . . . . Reinforcement 6 | . 2 1 3 Assault . | . . . . Garrison . | . . . . Intercept . | . . . . Searches Triggered . | . . . . Construction Impeded . | . . . . Haulers Reinforced . | . . . . Active Scanning Responses . | . . . . Cargo Convoy Interrupts . | . . . . Stealth | -11 -10 -9 -8 --------- Run | Yrd Mat Mat Mat Distress Signals . | . . . . Communications Jammed . | . . . . Distress Signals . | . . . . Times Spotted 32 | . 8 9 15 Peak Tracking Total 8 | . 3 4 8 Tactical Retreats 6 | . . 2 4 Traps | -11 -10 -9 -8 ------- Run | Yrd Mat Mat Mat Traps Triggered 1 | . 1 . . Indirectly . | . . . . Trap Hack Attempts . | . . . . Triggered . | . . . . Disarmed . | . . . . Reprogrammed . | . . . . Reused . | . . . . Traps Extracted . | . . . . Installed . | . . . . Triggered . | . . . . Machines | -11 -10 -9 -8 ---------- Run | Yrd Mat Mat Mat Machines Disabled 2 | . 1 . 1 Max in Single Turn 1 | . 1 . 1 Machines Repaired . | . . . . Machines Dismantled . | . . . . Machines Sabotaged . | . . . . Overloaded Fab Kills . | . . . . Hacking | -11 -10 -9 -8 --------- Run | Yrd Mat Mat Mat Machines Accessed 2 | . . 2 . Terminals 2 | . . 2 . Fabricators . | . . . . Repair Stations . | . . . . Recycling Units . | . . . . Scanalyzers . | . . . . Garrison Access . | . . . . Total Hacks 2 | . . 2 . Successful 2 | . . 2 . Failed . | . . . . Catastrophic . | . . . . Database Lockouts . | . . . . Manual . | . . . . Terminals 2 | . . 2 . Fabricators . | . . . . Repair Stations . | . . . . Recycling Units . | . . . . Scanalyzers . | . . . . Garrison Access . | . . . . Terminal Hacks 2 | . . 2 . Record 2 | . . 2 . Fabricator Hacks . | . . . . Repair Station Hacks . | . . . . Recycling Unit Hacks . | . . . . Scanalyzer . | . . . . Garrison Access Hacks . | . . . . Unauthorized Hacks . | . . . . Terminals . | . . . . Fabricators . | . . . . Repair Stations . | . . . . Recycling Units . | . . . . Scanalyzers . | . . . . Garrison Access . | . . . . Data Cores Recovered . | . . . . Used . | . . . . Hacking Detections 1 | . . 1 . Full Trace Events . | . . . . Feedback Events . | . . . . Feedback Blocked . | . . . . Robot Schematics Acquired . | . . . . Robots Built . | . . . . Authchips . | . . . . Time . | . . . . Total Robot Build Rating . | . . . . Part Schematics Acquired . | . . . . Parts Built . | . . . . Authchips . | . . . . Time . | . . . . Total Part Build Rating . | . . . . Parts Repaired . | . . . . Time . | . . . . Parts Recycled . | . . . . Recycled Matter . | . . . . Retrieved Matter . | . . . . Retrieved Components . | . . . . Parts Scanalyzed . | . . . . Part Schematics Acquired . | . . . . Parts Damaged . | . . . . Bothacking | -11 -10 -9 -8 ------------ Run | Yrd Mat Mat Mat Used RIF Installer . | . . . . Robots Hacked . | . . . . Non-combat . | . . . . Combat . | . . . . Robot Hacks Applied . | . . . . Relay Couplers Released . | . . . . Fabnet Peak Effective % . | . . . . Robots Rewired . | . . . . Allies Hacked . | . . . . Hacks Repelled . | . . . . Allies | -11 -10 -9 -8 -------- Run | Yrd Mat Mat Mat Total Allies . | . . . . Largest Group . | . . . . Highest-Rated Group . | . . . . Highest-Rated Ally . | . . . . Total Orders . | . . . . Ally Attacks . | . . . . Total Damage . | . . . . Kills . | . . . . Allies Corrupted . | . . . . Allies Melted . | . . . . Intel | -11 -10 -9 -8 ------- Run | Yrd Mat Mat Mat Robot Analysis Total . | . . . . Derelict Logs Recovered . | . . . . Drone Launches . | . . . . Drone Recoveries . | . . . . Exploration | -11 -10 -9 -8 ------------- Run | Yrd Mat Mat Mat Turns Passed 1544 | 57 372 437 678 Spaces Moved 626 | 39 196 221 170 Core 3 | 3 . . . Treads 232 | . 102 129 1 Legs 391 | 36 94 92 169 Wheels . | . . . . Hover . | . . . . Flight . | . . . . Fastest Speed 50 | 50 120 120 120 Average Speed 149 | 114 140 143 173 Slowest Speed 260 | 120 160 190 260 Overloaded Moves . | . . . . Propulsion Burnouts . | . . . . Robots Hopped . | . . . . Cave-ins Triggered . | . . . . Exploration Rate (%) 20 | 4 40 28 11 Regions Visited 3 Branch Regions . Pre-discovered Areas . | . . . . Known Exits Taken . | . . . . Unknown Exits Taken 3 | 1 1 1 . Scrap Searched . | . . . . Spaces Dug . | . . . . Terrain Destroyed . | . . . . Melee . | . . . . Projectile . | . . . . AOE . | . . . . Terrain Rammed . | . . . . Walls Destroyed . | . . . . Machines Disabled . | . . . . Actions | -11 -10 -9 -8 --------- Run | Yrd Mat Mat Mat Total 1095 | 48 248 304 495 Wait 314 | . 8 49 257 Move 623 | 38 195 220 170 Hop . | . . . . Pick Up 17 | 3 7 2 5 Fast Attach 13 | 6 1 4 2 Attach 19 | . 4 1 14 Detach 3 | . 1 2 . Swap 9 | 1 2 3 3 Drop 7 | . 2 1 4 Fire 90 | . 28 22 40 Melee . | . . . . Ram . | . . . . Kick . | . . . . Crush . | . . . . Escape Stasis . | . . . . Rewire . | . . . . Trap . | . . . . Miscellaneous . | . . . . Route ------- -11/Scrapyard -10/Materials -9/Materials -8/Materials History --------- Turn | Location | Event 12 | -11/Scrapyard | Discovered new exit (range 15) 58 | -11/Scrapyard | Entered Materials 307 | -10/Materials | Build established: Mutant 413 | -10/Materials | Discovered new exit (range 12) 430 | -10/Materials | Entered another Materials area 430 | -9/Materials | Evolved 2 slots: Propulsion x2 828 | -9/Materials | Discovered new exit (range 16) 867 | -9/Materials | Entered another Materials area 867 | -8/Materials | Evolved 2 slots: Power x1, Weapon x1 1242 | -8/Materials | Build established: Scavenger-Gunner 1502 | -8/Materials | Core integrity fell below 50% 1523 | -8/Materials | Core integrity fell below 20% 1545 | -8/Materials | Destroyed by G-47 Trooper with Particle Gun Last Messages --------------- 01509_ Lgt. Treads destroyed. 01513_ Critical hit (Burn: +37). 01513_ Acquired 32 matter. 01515_ K-01 Serf collects debris. 01516_ Acquired 8 matter. 01517_ Lgt. Assault Rifle destroyed. 01517_ Beam Rifle destroyed. 01519_ K-01 Serf collects debris. 01522_ Knocked back. 01523_ Acquired 5 matter. 01526_ K-01 Serf collects debris. 01529_ Aluminum Leg destroyed. 01529_ K-01 Serf collects debris. 01537_ U-05 Engineer builds a Wall. 01538_ K-01 Serf collects debris. 01540_ R-06 Scavenger collects Adv. Heat Sink. 01541_ K-01 Serf collects debris. 01543_ Lgt. Assault Rifle destroyed. 01545_ K-01 Serf collects debris. 01545_ Critical hit (Burn: +37). Map ----- +----------------------------------------------------+ | ????????????????????????????????????????????# | | ????????????????????????????????????????????# | | ????????????????????????????????????????????# !!* | | ????????????????????????????????????????????# !! | | ????????????????????????????????????????????# ! * | | ????????????????????????????????????????????# | | ????????????????????????????????????????????# | | ????????????????????????????####+#############+### | | ????????????????????????????# | | ????????????????????????????# | | ????????????????????????????# | | ????????????????????????????# ##############+### | | ????????????????????????????# #?????????# | | ????????????????????????????# ########### """"" | | ????????????????????????????# # ## """"" | | ????????????????????????????# # """"" ## """"" | | ????????????????????????????# # """"" ## | | ????????????????????????????# # """"" ## | | ????????????????????????????# # ## ! | | ????????????????????????????# # "" "" ## [ | | ????????????????????????????# # ""S"" ## | | ????????????????????????????# + """" ######### | | ????????????????????????????# %# #???????? | | ?????????????????????######?#% ###########??????? | | ??????????????????########### # #??????? | | ??????????????????# [!%% @ # # #??????? | | ??????????????????# ""*g u%# %%# #??????? | | ??????????????????# ""=H""" #= %# #??????? | | ??????????????????# """[=k %uu %+ #??????? | | ??????????????????# =%r #% # """ """ #??????? | | ??????????????????# % # # """ """ #??????? | | ??????????????????# # # """ """ #??????? | | ??????????????????# # ###########??????? | | ??????????????????###########!! #????????????????? | | ????????????????????????????#%! #????????????????? | | ????????????????????????????#!! #????????????????? | | ????????????????????????????#! #????????????????? | | ????????????????????????????# #????????????????? | | ????????????????????????????# #????????????????? | | ???????????????????????????? % ????????????????? | | ????????????????????????????[ ???????????????? | | ???????????????????????????? ???????????????? | | ???????????????????????????? ? ??????????????? | | ????????????????????????????? #???????????????? | | ?????????????????????????????#+#?????????????????? | | ?????????????????????????????????????????????????? | | ?????????????????????????????????????????????????? | | ?????????????????????????????????????????????????? | | ?????????????????????????????????????????????????? | | ?????????????????????????????????????????????????? | +----------------------------------------------------+ Best States ------------- Heat Dissipation 31 Energy Generation 23 Energy Capacity 450 Matter Stores 274 Matter Capacity 400 Sight Range 16 Terrain Scan Density 10 Evasion (%) 55 Recoil Reduction 2 Item Schematics ----------------- None Robot Schematics ------------------ None Fabricated ------------ Nothing Alien Tech Used ----------------- None Achievements -------------- None Challenges ------------ None Game ------ Seed DimensionalParticleTendrils Manual? 0 Play Time 00:17:17 Cumulative 6.1 hours Start 2024.12.06 @ 18:53:09 End 2024.12.06 @ 19:06:07 Sessions 1 Manual Loads 0 Difficulty Rogue Special Mode None Game No. 17 Rogue 17 Adventurer 0 Explorer 0 Win Type - Total 0 Types 0/0/0/0/0/0/0/0/0 Lore% 1 Gallery% 10 Achievement% 7 Wizard Run 0 Options --------- Layout 1 ASCII 0 Keyboard 0 Movement Numpad Keybinds 0 Fullscreen 0 Font 28/SmallcapsGlow Map View 50x35 Zoom Use 0% Tactical HUD 1 Map Filters NONE Filters NONE Steam X RUN: f0968dd3-91b7-48f8-a34f-5234aef97a3b